[Event "November 21 Early 2023"]
[Site "https://www.chess.com"]
[Date "2023.11.21"]
[Round "11"]
[White "Baskakov, Egor"]
[Black "Liang, Awonder"]
[Result "1/2-1/2"]
[Board "7"]
[TimeControl "180+1"]
[WhiteFideId "24197866"]
[BlackFideId "2056437"]
[WhiteElo "2225"]
[BlackElo "2527"]
[WhiteTeam "RUS"]
[BlackTeam "USA"]
[WhiteClock "0:00:06"]
[BlackClock "0:00:05"]

1. e4 {[%clk 0:03:00]}  b6 {[%clk 0:03:00]} 2. g3 {[%clk 0:03:00]}  Bb7 {[%clk 0:03:00]} 3. Bg2 {[%clk 0:03:01]}  e6 {[%clk 0:03:01]} 4. Nc3 {[%clk 0:03:01]}  Nf6 {[%clk 0:03:01]} 5. Nge2 {[%clk 0:03:02]}  d5 {[%clk 0:03:01]} 6. exd5 {[%clk 0:03:01]}  Nxd5 {[%clk 0:03:01]} 7. O-O {[%clk 0:03:01]}  Be7 {[%clk 0:03:02]} 8. Nf4 {[%clk 0:02:55]}  Nxc3 {[%clk 0:03:00]} 9. bxc3 {[%clk 0:02:52]}  Bxg2 {[%clk 0:03:01]} 10. Kxg2 {[%clk 0:02:52]}  O-O {[%clk 0:03:01]} 11. d3 {[%clk 0:02:51]}  Bf6 {[%clk 0:02:58]} 12. Qf3 {[%clk 0:02:46]}  Nd7 {[%clk 0:02:58]} 13. Bd2 {[%clk 0:02:43]}  c5 {[%clk 0:02:54]} 14. Rae1 {[%clk 0:02:38]}  g6 {[%clk 0:02:21]} 15. h4 {[%clk 0:02:29]}  Bg7 {[%clk 0:02:21]} 16. h5 {[%clk 0:02:26]}  g5 {[%clk 0:02:21]} 17. h6 {[%clk 0:02:11]}  Bxh6 {[%clk 0:02:20]} 18. Nh5 {[%clk 0:02:05]}  Qe7 {[%clk 0:02:03]} 19. c4 {[%clk 0:01:54]}  Rae8 {[%clk 0:01:50]} 20. Bc3 {[%clk 0:01:47]}  f5 {[%clk 0:01:30]} 21. Rh1 {[%clk 0:01:46]}  e5 {[%clk 0:01:13]} 22. Qb7 {[%clk 0:01:35]}  Qd6 {[%clk 0:01:13]} 23. Kg1 {[%clk 0:01:09]}  g4 {[%clk 0:01:07]} 24. Qg2 {[%clk 0:01:00]}  Bg5 {[%clk 0:01:06]} 25. f3 {[%clk 0:00:58]}  gxf3 {[%clk 0:01:00]} 26. Qxf3 {[%clk 0:00:58]}  h6 {[%clk 0:01:00]} 27. Rh2 {[%clk 0:00:55]}  e4 {[%clk 0:00:57]} 28. Qf1 {[%clk 0:00:51]}  Ne5 {[%clk 0:00:55]} 29. Bxe5 {[%clk 0:00:45]}  Qxe5 {[%clk 0:00:56]} 30. Rhe2 {[%clk 0:00:45]}  Qd4+ {[%clk 0:00:46]} 31. Kg2 {[%clk 0:00:45]}  Re7 {[%clk 0:00:42]} 32. Nf4 {[%clk 0:00:42]}  Rfe8 {[%clk 0:00:41]} 33. Nd5 {[%clk 0:00:40]}  Re5 {[%clk 0:00:34]} 34. Rf2 {[%clk 0:00:24]}  exd3 {[%clk 0:00:32]} 35. Rxe5 {[%clk 0:00:25]}  Rxe5 {[%clk 0:00:33]} 36. cxd3 {[%clk 0:00:22]}  Qg4 {[%clk 0:00:25]} 37. Qa1 {[%clk 0:00:09]}  Re6 {[%clk 0:00:21]} 38. Qf1 {[%clk 0:00:07]}  Re5 {[%clk 0:00:10]} 39. Qa1 {[%clk 0:00:07]}  Re2 {[%clk 0:00:07]} 40. Qf1 {[%clk 0:00:07]}  Rxf2+ {[%clk 0:00:05]} 41. Qxf2 {[%clk 0:00:08]}  h5 {[%clk 0:00:05]} 42. Qe1 {[%clk 0:00:07]}  Kf7 {[%clk 0:00:04]} 43. Qe5 {[%clk 0:00:06]}  h4 {[%clk 0:00:04]} 44. Qc7+ {[%clk 0:00:06]}  Kg6 {[%clk 0:00:04]} 45. Qc6+ {[%clk 0:00:07]}  Kg7 {[%clk 0:00:03]} 46. Qd7+ {[%clk 0:00:07]}  Kh6 {[%clk 0:00:03]} 47. Qe6+ {[%clk 0:00:07]}  Kg7 {[%clk 0:00:02]} 48. Qd7+ {[%clk 0:00:07]}  Kg6 {[%clk 0:00:02]} 49. Qe8+ {[%clk 0:00:06]}  Kh7 {[%clk 0:00:03]} 50. Qf7+ {[%clk 0:00:06]}  Kh6 {[%clk 0:00:03]} 51. Qf8+ {[%clk 0:00:06]}  Kh7 {[%clk 0:00:04]} 52. Qf7+ {[%clk 0:00:05]}  Kh6 {[%clk 0:00:05]} 53. Qf8+ {[%clk 0:00:05]}  Kh7 {[%clk 0:00:05]} 54. Qf7+ {[%clk 0:00:06]} 1/2-1/2

[Event "November 21 Early 2023"]
[Site "https://www.chess.com"]
[Date "2023.11.21"]
[Round "11"]
[White "Puranik, Abhimanyu"]
[Black "Cherniaiev, Tykhon"]
[Result "1/2-1/2"]
[Board "9"]
[TimeControl "180+1"]
[WhiteFideId "5061245"]
[BlackFideId "14182360"]
[WhiteElo "2493"]
[BlackElo "2438"]
[WhiteTeam "IND"]
[BlackTeam "UKR"]
[WhiteClock "0:00:04"]
[BlackClock "0:00:07"]

1. Nf3 {[%clk 0:03:00]}  Nf6 {[%clk 0:02:58]} 2. g3 {[%clk 0:03:00]}  g6 {[%clk 0:02:59]} 3. b3 {[%clk 0:03:00]}  Bg7 {[%clk 0:02:59]} 4. Bb2 {[%clk 0:03:00]}  O-O {[%clk 0:03:00]} 5. c4 {[%clk 0:03:00]}  c5 {[%clk 0:03:00]} 6. Bg2 {[%clk 0:02:59]}  d5 {[%clk 0:03:01]} 7. cxd5 {[%clk 0:02:59]}  Nxd5 {[%clk 0:03:02]} 8. Bxg7 {[%clk 0:02:59]}  Kxg7 {[%clk 0:03:03]} 9. d4 {[%clk 0:02:55]}  cxd4 {[%clk 0:03:00]} 10. Nxd4 {[%clk 0:02:49]}  Nf6 {[%clk 0:02:46]} 11. O-O {[%clk 0:02:48]}  a6 {[%clk 0:02:45]} 12. Nc3 {[%clk 0:02:44]}  Qa5 {[%clk 0:02:41]} 13. Qc2 {[%clk 0:02:37]}  Bd7 {[%clk 0:02:08]} 14. Qb2 {[%clk 0:02:29]}  Nc6 {[%clk 0:02:04]} 15. Nxc6 {[%clk 0:02:29]}  Bxc6 {[%clk 0:02:05]} 16. Bxc6 {[%clk 0:02:29]}  bxc6 {[%clk 0:02:06]} 17. Rac1 {[%clk 0:02:26]}  Rab8 {[%clk 0:01:58]} 18. Ne4 {[%clk 0:02:23]}  Rfc8 {[%clk 0:01:48]} 19. Nxf6 {[%clk 0:02:20]}  exf6 {[%clk 0:01:49]} 20. Rfd1 {[%clk 0:02:20]}  Rd8 {[%clk 0:01:44]} 21. Kg2 {[%clk 0:01:51]}  Qf5 {[%clk 0:01:37]} 22. f3 {[%clk 0:01:46]}  Qe6 {[%clk 0:01:28]} 23. e4 {[%clk 0:01:33]}  a5 {[%clk 0:01:27]} 24. Qc2 {[%clk 0:01:32]}  Rxd1 {[%clk 0:01:17]} 25. Rxd1 {[%clk 0:01:32]}  Qe5 {[%clk 0:01:17]} 26. Rd2 {[%clk 0:01:27]}  a4 {[%clk 0:00:49]} 27. bxa4 {[%clk 0:01:25]}  Qa5 {[%clk 0:00:48]} 28. Re2 {[%clk 0:01:21]}  Rb4 {[%clk 0:00:42]} 29. Qxc6 {[%clk 0:01:15]}  Rxa4 {[%clk 0:00:42]} 30. Qc2 {[%clk 0:01:02]}  Ra3 {[%clk 0:00:40]} 31. Qb2 {[%clk 0:01:00]}  h5 {[%clk 0:00:37]} 32. e5 {[%clk 0:00:59]}  fxe5 {[%clk 0:00:37]} 33. f4 {[%clk 0:00:44]}  Qa8+ {[%clk 0:00:28]} 34. Kg1 {[%clk 0:00:42]}  Qa7+ {[%clk 0:00:28]} 35. Kf1 {[%clk 0:00:42]}  Rf3+ {[%clk 0:00:28]} 36. Kg2 {[%clk 0:00:42]}  Qa8 {[%clk 0:00:21]} 37. Qxe5+ {[%clk 0:00:41]}  Kh7 {[%clk 0:00:22]} 38. Qe4 {[%clk 0:00:22]}  Qxe4 {[%clk 0:00:22]} 39. Rxe4 {[%clk 0:00:23]}  Ra3 {[%clk 0:00:23]} 40. Re2 {[%clk 0:00:24]}  Kg7 {[%clk 0:00:21]} 41. Kf2 {[%clk 0:00:22]}  Kf6 {[%clk 0:00:21]} 42. Ke1 {[%clk 0:00:22]}  Kf5 {[%clk 0:00:20]} 43. Kf2 {[%clk 0:00:17]}  h4 {[%clk 0:00:19]} 44. Re5+ {[%clk 0:00:09]}  Kf6 {[%clk 0:00:19]} 45. gxh4 {[%clk 0:00:08]}  Rxa2+ {[%clk 0:00:19]} 46. Kg3 {[%clk 0:00:08]}  Ra3+ {[%clk 0:00:19]} 47. Kg4 {[%clk 0:00:06]}  Ra2 {[%clk 0:00:20]} 48. h3 {[%clk 0:00:05]}  Rg2+ {[%clk 0:00:18]} 49. Kf3 {[%clk 0:00:04]}  Rh2 {[%clk 0:00:18]} 50. Kg3 {[%clk 0:00:04]}  Ra2 {[%clk 0:00:19]} 51. h5 {[%clk 0:00:05]}  gxh5 {[%clk 0:00:19]} 52. Rxh5 {[%clk 0:00:05]}  Kg6 {[%clk 0:00:20]} 53. Rg5+ {[%clk 0:00:05]}  Kh6 {[%clk 0:00:18]} 54. Kg4 {[%clk 0:00:05]}  f6 {[%clk 0:00:13]} 55. Rb5 {[%clk 0:00:05]}  Kg6 {[%clk 0:00:13]} 56. h4 {[%clk 0:00:06]}  f5+ {[%clk 0:00:10]} 57. Kf3 {[%clk 0:00:02]}  Ra3+ {[%clk 0:00:10]} 58. Kg2 {[%clk 0:00:03]}  Kh5 {[%clk 0:00:11]} 59. Rxf5+ {[%clk 0:00:02]}  Kg4 {[%clk 0:00:09]} 60. Rg5+ {[%clk 0:00:03]}  Kxf4 {[%clk 0:00:09]} 61. Rg8 {[%clk 0:00:03]}  Ra2+ {[%clk 0:00:08]} 62. Kf1 {[%clk 0:00:03]}  Rh2 {[%clk 0:00:07]} 63. Rh8 {[%clk 0:00:02]}  Kg4 {[%clk 0:00:06]} 64. h5 {[%clk 0:00:03]}  Rxh5 {[%clk 0:00:06]} 65. Rxh5 {[%clk 0:00:04]}  Kxh5 {[%clk 0:00:07]} 1/2-1/2

[Event "November 21 Early 2023"]
[Site "https://www.chess.com"]
[Date "2023.11.21"]
[Round "11"]
[White "De Silva, L M S T"]
[Black "Kamsky, Gata"]
[Result "0-1"]
[Board "11"]
[TimeControl "180+1"]
[WhiteFideId "9953698"]
[BlackFideId "2000024"]
[WhiteElo "2372"]
[BlackElo "2660"]
[WhiteTeam "SRI"]
[BlackTeam "USA"]
[WhiteClock "0:00:01"]
[BlackClock "0:00:01"]

1. e4 {[%clk 0:03:00]}  g6 {[%clk 0:02:56]} 2. g3 {[%clk 0:02:55]}  Bg7 {[%clk 0:02:56]} 3. Bg2 {[%clk 0:02:56]}  c5 {[%clk 0:02:56]} 4. Ne2 {[%clk 0:02:54]}  Nc6 {[%clk 0:02:57]} 5. c3 {[%clk 0:02:55]}  e5 {[%clk 0:02:57]} 6. a4 {[%clk 0:02:53]}  d6 {[%clk 0:02:56]} 7. Na3 {[%clk 0:02:54]}  Nge7 {[%clk 0:02:57]} 8. Nc4 {[%clk 0:02:54]}  Be6 {[%clk 0:02:55]} 9. Ne3 {[%clk 0:02:55]}  O-O {[%clk 0:02:53]} 10. O-O {[%clk 0:02:49]}  Qd7 {[%clk 0:02:52]} 11. d3 {[%clk 0:02:46]}  Bh3 {[%clk 0:02:43]} 12. f4 {[%clk 0:02:45]}  Bxg2 {[%clk 0:02:43]} 13. Kxg2 {[%clk 0:02:43]}  f5 {[%clk 0:02:34]} 14. Nc4 {[%clk 0:02:33]}  Kh8 {[%clk 0:02:29]} 15. Be3 {[%clk 0:02:28]}  b6 {[%clk 0:02:24]} 16. Qd2 {[%clk 0:02:28]}  Rad8 {[%clk 0:02:21]} 17. Rad1 {[%clk 0:02:19]}  Qe6 {[%clk 0:02:17]} 18. fxe5 {[%clk 0:01:40]}  dxe5 {[%clk 0:02:11]} 19. exf5 {[%clk 0:01:37]}  Nxf5 {[%clk 0:02:06]} 20. Bg5 {[%clk 0:01:38]}  Rde8 {[%clk 0:01:55]} 21. Ne3 {[%clk 0:01:33]}  h6 {[%clk 0:01:45]} 22. Nxf5 {[%clk 0:01:27]}  gxf5 {[%clk 0:01:45]} 23. Bh4 {[%clk 0:01:23]}  Qg6 {[%clk 0:01:05]} 24. Qe3 {[%clk 0:01:19]}  c4 {[%clk 0:00:54]} 25. dxc4 {[%clk 0:00:28]}  f4 {[%clk 0:00:52]} 26. Qd2 {[%clk 0:00:29]}  Qe4+ {[%clk 0:00:38]} 27. Rf3 {[%clk 0:00:27]}  fxg3 {[%clk 0:00:37]} 28. Qe3 {[%clk 0:00:25]}  Qxh4 {[%clk 0:00:37]} 29. Rxg3 {[%clk 0:00:21]}  Rd8 {[%clk 0:00:23]} 30. Rg1 {[%clk 0:00:20]}  Ne7 {[%clk 0:00:16]} 31. Rh3 {[%clk 0:00:18]}  Qf6 {[%clk 0:00:11]} 32. Ng3 {[%clk 0:00:17]}  Qc6+ {[%clk 0:00:10]} 33. Ne4 {[%clk 0:00:16]}  Rf4 {[%clk 0:00:11]} 34. Re1 {[%clk 0:00:11]}  Nf5 {[%clk 0:00:11]} 35. Qe2 {[%clk 0:00:10]}  Nd6 {[%clk 0:00:11]} 36. Re3 {[%clk 0:00:08]}  Nxc4 {[%clk 0:00:12]} 37. Rd3 {[%clk 0:00:06]}  Qg6+ {[%clk 0:00:10]} 38. Rg3 {[%clk 0:00:06]}  Qc6 {[%clk 0:00:09]} 39. Kg1 {[%clk 0:00:05]}  Nd6 {[%clk 0:00:08]} 40. Ng5 {[%clk 0:00:04]}  hxg5 {[%clk 0:00:07]} 41. Qh5+ {[%clk 0:00:04]}  Kg8 {[%clk 0:00:07]} 42. Qxg5 {[%clk 0:00:05]}  Nf5 {[%clk 0:00:05]} 43. Qxd8+ {[%clk 0:00:02]}  Kf7 {[%clk 0:00:05]} 44. Rg2 {[%clk 0:00:01]}  Bf8 {[%clk 0:00:04]} 45. Qg5 {[%clk 0:00:01]}  Bc5+ {[%clk 0:00:04]} 46. Kh1 {[%clk 0:00:02]}  Qf6 {[%clk 0:00:03]} 47. Qh5+ {[%clk 0:00:02]}  Ke7 {[%clk 0:00:03]} 48. Rd1 {[%clk 0:00:02]}  Ne3 {[%clk 0:00:02]} 49. Qh7+ {[%clk 0:00:03]}  Qf7 {[%clk 0:00:01]} 50. Rd7+ {[%clk 0:00:03]}  Kxd7 {[%clk 0:00:01]} 51. Rg7 {[%clk 0:00:01]}  Rf1+ {[%clk 0:00:01]} 0-1

[Event "November 21 Early 2023"]
[Site "https://www.chess.com"]
[Date "2023.11.21"]
[Round "11"]
[White "Tristan, Leonardo"]
[Black "Maksimovic, Bojan"]
[Result "1-0"]
[Board "13"]
[TimeControl "180+1"]
[WhiteFideId "113816"]
[BlackFideId "14408120"]
[WhiteElo "2483"]
[BlackElo "2546"]
[WhiteTeam "ARG"]
[BlackTeam "BIH"]
[WhiteClock "0:00:14"]
[BlackClock "0:00:09"]

1. d4 {[%clk 0:03:00]}  a6 {[%clk 0:03:00]} 2. e4 {[%clk 0:02:59]}  e6 {[%clk 0:03:00]} 3. Nf3 {[%clk 0:02:54]}  d5 {[%clk 0:03:00]} 4. exd5 {[%clk 0:02:52]}  exd5 {[%clk 0:03:00]} 5. Bd3 {[%clk 0:02:53]}  Bd6 {[%clk 0:02:54]} 6. O-O {[%clk 0:02:50]}  Ne7 {[%clk 0:02:55]} 7. h3 {[%clk 0:02:49]}  Nbc6 {[%clk 0:02:52]} 8. c3 {[%clk 0:02:48]}  Bf5 {[%clk 0:02:50]} 9. Bxf5 {[%clk 0:02:44]}  Nxf5 {[%clk 0:02:51]} 10. Re1+ {[%clk 0:02:44]}  Nfe7 {[%clk 0:02:48]} 11. b4 {[%clk 0:02:19]}  Qd7 {[%clk 0:02:44]} 12. a4 {[%clk 0:02:20]}  O-O {[%clk 0:02:42]} 13. Nbd2 {[%clk 0:02:14]}  Ng6 {[%clk 0:02:38]} 14. Nb3 {[%clk 0:01:52]}  Rfe8 {[%clk 0:02:28]} 15. Rxe8+ {[%clk 0:01:47]}  Rxe8 {[%clk 0:02:29]} 16. Bd2 {[%clk 0:01:48]}  Nce7 {[%clk 0:02:20]} 17. Qf1 {[%clk 0:01:39]}  Nf5 {[%clk 0:02:07]} 18. Qd3 {[%clk 0:01:38]}  Nfh4 {[%clk 0:01:55]} 19. Nxh4 {[%clk 0:01:32]}  Nxh4 {[%clk 0:01:56]} 20. Nc5 {[%clk 0:01:19]}  Bxc5 {[%clk 0:01:48]} 21. dxc5 {[%clk 0:01:20]}  c6 {[%clk 0:01:43]} 22. c4 {[%clk 0:01:12]}  d4 {[%clk 0:01:05]} 23. Bc3 {[%clk 0:01:08]}  Nf5 {[%clk 0:00:57]} 24. g4 {[%clk 0:01:07]}  Nh4 {[%clk 0:00:56]} 25. Kf1 {[%clk 0:01:02]}  h5 {[%clk 0:00:38]} 26. Rd1 {[%clk 0:00:31]}  hxg4 {[%clk 0:00:20]} 27. Qxd4 {[%clk 0:00:31]}  Qxd4 {[%clk 0:00:21]} 28. Rxd4 {[%clk 0:00:32]}  Nf3 {[%clk 0:00:21]} 29. Rf4 {[%clk 0:00:23]}  g5 {[%clk 0:00:21]} 30. Rf5 {[%clk 0:00:22]}  Re4 {[%clk 0:00:17]} 31. hxg4 {[%clk 0:00:22]}  Rxc4 {[%clk 0:00:16]} 32. Rxf3 {[%clk 0:00:22]}  Rxg4 {[%clk 0:00:16]} 33. Rg3 {[%clk 0:00:21]}  Rc4 {[%clk 0:00:11]} 34. Rxg5+ {[%clk 0:00:21]}  Kf8 {[%clk 0:00:12]} 35. Rg3 {[%clk 0:00:19]}  Ke7 {[%clk 0:00:12]} 36. Rd3 {[%clk 0:00:19]}  Ke6 {[%clk 0:00:12]} 37. Ke2 {[%clk 0:00:17]}  a5 {[%clk 0:00:12]} 38. bxa5 {[%clk 0:00:16]}  Rxc5 {[%clk 0:00:13]} 39. Kd2 {[%clk 0:00:15]}  Rc4 {[%clk 0:00:13]} 40. Rd4 {[%clk 0:00:14]}  Rc5 {[%clk 0:00:13]} 41. Rb4 {[%clk 0:00:14]}  Rxa5 {[%clk 0:00:10]} 42. Re4+ {[%clk 0:00:14]}  Kd5 {[%clk 0:00:09]} 43. Re5+ {[%clk 0:00:14]} 1-0

[Event "November 21 Early 2023"]
[Site "https://www.chess.com"]
[Date "2023.11.21"]
[Round "11"]
[White "Nakamura, Hikaru"]
[Black "Raja Rithvik R"]
[Result "1/2-1/2"]
[Board "14"]
[TimeControl "180+1"]
[WhiteFideId "2016192"]
[BlackFideId "35007394"]
[WhiteElo "2874"]
[BlackElo "2395"]
[WhiteTeam "USA"]
[BlackTeam "IND"]
[WhiteClock "0:00:38"]
[BlackClock "0:00:18"]

1. h4 {[%clk 0:03:00]}  d5 {[%clk 0:02:58]} 2. g3 {[%clk 0:03:00]}  e5 {[%clk 0:02:58]} 3. d3 {[%clk 0:03:00]}  Nf6 {[%clk 0:02:59]} 4. Bg2 {[%clk 0:03:01]}  Be7 {[%clk 0:02:57]} 5. c4 {[%clk 0:03:00]}  d4 {[%clk 0:02:55]} 6. Bg5 {[%clk 0:02:55]}  O-O {[%clk 0:02:48]} 7. Nd2 {[%clk 0:02:54]}  Nbd7 {[%clk 0:02:38]} 8. Ngf3 {[%clk 0:02:50]}  c6 {[%clk 0:02:32]} 9. Bxf6 {[%clk 0:02:43]}  Bxf6 {[%clk 0:02:33]} 10. b4 {[%clk 0:02:43]}  a5 {[%clk 0:02:32]} 11. a3 {[%clk 0:02:42]}  Be7 {[%clk 0:02:28]} 12. c5 {[%clk 0:02:33]}  axb4 {[%clk 0:02:17]} 13. axb4 {[%clk 0:02:33]}  Rxa1 {[%clk 0:02:18]} 14. Qxa1 {[%clk 0:02:33]}  b6 {[%clk 0:02:19]} 15. O-O {[%clk 0:02:28]}  bxc5 {[%clk 0:02:18]} 16. bxc5 {[%clk 0:02:29]}  Bxc5 {[%clk 0:02:18]} 17. Rc1 {[%clk 0:02:28]}  Qe7 {[%clk 0:02:14]} 18. Ne4 {[%clk 0:02:25]}  Bb6 {[%clk 0:02:01]} 19. Rxc6 {[%clk 0:02:24]}  Bb7 {[%clk 0:02:02]} 20. Rc2 {[%clk 0:02:23]}  h6 {[%clk 0:01:54]} 21. h5 {[%clk 0:02:14]}  Ra8 {[%clk 0:01:45]} 22. Qb1 {[%clk 0:02:08]}  Bd5 {[%clk 0:01:29]} 23. Nh4 {[%clk 0:02:06]}  Qe6 {[%clk 0:01:25]} 24. Rb2 {[%clk 0:02:01]}  Bd8 {[%clk 0:01:25]} 25. Nf3 {[%clk 0:01:58]}  Be7 {[%clk 0:01:18]} 26. Kh2 {[%clk 0:01:44]}  Qg4 {[%clk 0:01:09]} 27. Kg1 {[%clk 0:01:36]}  Qxh5 {[%clk 0:01:07]} 28. Nfd2 {[%clk 0:01:31]}  Qg6 {[%clk 0:01:02]} 29. Nc4 {[%clk 0:01:23]}  Qc6 {[%clk 0:01:02]} 30. Rb5 {[%clk 0:01:19]}  Ra1 {[%clk 0:00:54]} 31. Qxa1 {[%clk 0:01:14]}  Qxb5 {[%clk 0:00:55]} 32. Qa7 {[%clk 0:01:15]}  Bf8 {[%clk 0:00:43]} 33. Ned2 {[%clk 0:01:02]}  Bxg2 {[%clk 0:00:41]} 34. Kxg2 {[%clk 0:01:03]}  Qd5+ {[%clk 0:00:41]} 35. Kg1 {[%clk 0:01:02]}  h5 {[%clk 0:00:32]} 36. Qc7 {[%clk 0:01:00]}  h4 {[%clk 0:00:30]} 37. gxh4 {[%clk 0:01:00]}  Qe6 {[%clk 0:00:30]} 38. Nf3 {[%clk 0:00:59]}  e4 {[%clk 0:00:21]} 39. dxe4 {[%clk 0:00:57]}  Nc5 {[%clk 0:00:20]} 40. Ncd2 {[%clk 0:00:46]}  Nxe4 {[%clk 0:00:18]} 41. Nxe4 {[%clk 0:00:39]}  Qxe4 {[%clk 0:00:17]} 42. Qxf7+ {[%clk 0:00:39]}  Kxf7 {[%clk 0:00:18]} 43. Ng5+ {[%clk 0:00:40]}  Kg6 {[%clk 0:00:19]} 44. Nxe4 {[%clk 0:00:41]}  Kh5 {[%clk 0:00:20]} 45. Ng3+ {[%clk 0:00:42]}  Kg4 {[%clk 0:00:19]} 46. Kg2 {[%clk 0:00:41]}  g6 {[%clk 0:00:17]} 47. Nf1 {[%clk 0:00:36]}  Kxh4 {[%clk 0:00:13]} 48. Nd2 {[%clk 0:00:36]}  Kg4 {[%clk 0:00:13]} 49. Nf3 {[%clk 0:00:35]}  Bg7 {[%clk 0:00:13]} 50. Ne1 {[%clk 0:00:34]}  Bf8 {[%clk 0:00:13]} 51. Nd3 {[%clk 0:00:34]}  Bd6 {[%clk 0:00:13]} 52. f3+ {[%clk 0:00:34]}  Kf5 {[%clk 0:00:14]} 53. Kh3 {[%clk 0:00:35]}  g5 {[%clk 0:00:15]} 54. Nf2 {[%clk 0:00:35]}  Kf4 {[%clk 0:00:15]} 55. Ne4 {[%clk 0:00:33]}  Be7 {[%clk 0:00:15]} 56. Ng3 {[%clk 0:00:33]}  Ke3 {[%clk 0:00:15]} 57. Kg4 {[%clk 0:00:33]}  Bd8 {[%clk 0:00:12]} 58. Nf5+ {[%clk 0:00:32]}  Kxe2 {[%clk 0:00:11]} 59. Nxd4+ {[%clk 0:00:33]}  Ke3 {[%clk 0:00:12]} 60. Ne6 {[%clk 0:00:34]}  Bf6 {[%clk 0:00:13]} 61. Nc7 {[%clk 0:00:35]}  Be5 {[%clk 0:00:11]} 62. Nd5+ {[%clk 0:00:35]}  Kd4 {[%clk 0:00:11]} 63. Nb4 {[%clk 0:00:35]}  Bf6 {[%clk 0:00:11]} 64. Nc2+ {[%clk 0:00:35]}  Ke5 {[%clk 0:00:12]} 65. Ne3 {[%clk 0:00:36]}  Ke6 {[%clk 0:00:13]} 66. Nf1 {[%clk 0:00:34]}  Be7 {[%clk 0:00:13]} 67. Ng3 {[%clk 0:00:34]}  Kf6 {[%clk 0:00:14]} 68. Ne4+ {[%clk 0:00:35]}  Kg6 {[%clk 0:00:15]} 69. Nd2 {[%clk 0:00:36]}  Bf6 {[%clk 0:00:15]} 70. Nc4 {[%clk 0:00:37]}  Bg7 {[%clk 0:00:15]} 71. Nd6 {[%clk 0:00:37]}  Bf6 {[%clk 0:00:16]} 72. Ne4 {[%clk 0:00:37]}  Be7 {[%clk 0:00:16]} 73. Nf2 {[%clk 0:00:38]}  Bf6 {[%clk 0:00:17]} 74. Nd1 {[%clk 0:00:38]}  Bd4 {[%clk 0:00:17]} 75. f4 {[%clk 0:00:37]}  gxf4 {[%clk 0:00:18]} 76. Kxf4 {[%clk 0:00:38]} 1/2-1/2

[Event "November 21 Early 2023"]
[Site "https://www.chess.com"]
[Date "2023.11.21"]
[Round "11"]
[White "Molina, Roberto Junio Brito"]
[Black "Demchenko, Anton"]
[Result "1-0"]
[Board "17"]
[TimeControl "180+1"]
[WhiteFideId "2109450"]
[BlackFideId "4160258"]
[WhiteElo "2389"]
[BlackElo "2545"]
[WhiteTeam "BRA"]
[BlackTeam "SLO"]
[WhiteClock "0:00:36"]
[BlackClock "0:00:22"]

1. d4 {[%clk 0:03:00]}  Nf6 {[%clk 0:03:00]} 2. c4 {[%clk 0:02:59]}  d6 {[%clk 0:03:00]} 3. Nf3 {[%clk 0:02:58]}  Nc6 {[%clk 0:03:00]} 4. d5 {[%clk 0:02:58]}  Ne5 {[%clk 0:03:00]} 5. Nxe5 {[%clk 0:02:58]}  dxe5 {[%clk 0:03:01]} 6. Nc3 {[%clk 0:02:59]}  e6 {[%clk 0:03:02]} 7. e4 {[%clk 0:02:59]}  Bc5 {[%clk 0:03:02]} 8. Be3 {[%clk 0:02:57]}  Bxe3 {[%clk 0:03:01]} 9. fxe3 {[%clk 0:02:57]}  O-O {[%clk 0:02:55]} 10. Qc2 {[%clk 0:02:48]}  c6 {[%clk 0:02:51]} 11. O-O-O {[%clk 0:02:46]}  Qb6 {[%clk 0:02:49]} 12. d6 {[%clk 0:02:24]}  Qxe3+ {[%clk 0:02:44]} 13. Kb1 {[%clk 0:02:24]}  Rd8 {[%clk 0:02:40]} 14. Be2 {[%clk 0:02:20]}  b6 {[%clk 0:01:36]} 15. Rd3 {[%clk 0:02:15]}  Qc5 {[%clk 0:01:33]} 16. Na4 {[%clk 0:02:13]}  Qf2 {[%clk 0:01:28]} 17. Rf1 {[%clk 0:02:05]}  Qxg2 {[%clk 0:01:28]} 18. Rxf6 {[%clk 0:02:03]}  Qxe4 {[%clk 0:01:18]} 19. Rxf7 {[%clk 0:01:34]}  Qh1+ {[%clk 0:01:05]} 20. Rf1 {[%clk 0:01:24]}  Qxh2 {[%clk 0:01:05]} 21. c5 {[%clk 0:01:21]}  Ba6 {[%clk 0:00:54]} 22. Rd2 {[%clk 0:01:18]}  Bxe2 {[%clk 0:00:54]} 23. Rxe2 {[%clk 0:01:19]}  Qh3 {[%clk 0:00:55]} 24. Rd1 {[%clk 0:01:13]}  bxc5 {[%clk 0:00:43]} 25. Nxc5 {[%clk 0:01:09]}  Rab8 {[%clk 0:00:44]} 26. Rxe5 {[%clk 0:00:56]}  Rb5 {[%clk 0:00:41]} 27. Re2 {[%clk 0:00:51]}  h5 {[%clk 0:00:38]} 28. d7 {[%clk 0:00:49]}  Qg4 {[%clk 0:00:22]} 29. Nxe6 {[%clk 0:00:36]} 1-0